bitfinex/quotes_BTCUSD_20250412
["timestamp","ask_amount","ask_price","bid_price","bid_amount"]
[1744459213462,0.5650006,83491.0,83490.0,0.09346739]
[1744459213685,0.5550006,83491.0,83490.0,0.09246739]
[1744459214080,0.5640006,83491.0,83490.0,0.09346739]
[1744459215631,0.4140006,83491.0,83490.0,0.09346739]
[1744459223065,0.42280702,83491.0,83490.0,0.09346739]
[1744459223435,0.4140006,83491.0,83490.0,0.33301639]
[1744459224502,0.4090006,83491.0,83490.0,0.33301639]
[1744459224911,0.4040006,83491.0,83490.0,0.33201639]
[1744459226183,0.4100006,83491.0,83490.0,0.33201639]
[1744459229047,0.0004222,83496.0,83495.0,0.239535]
[1744459229256,6e-07,83506.0,83505.0,0.239506]
[1744459229497,6e-07,83506.0,83505.0,0.47148048]
[1744459229702,6e-07,83506.0,83505.0,0.45644754]
[1744459229915,6e-07,83506.0,83505.0,0.335606]
[1744459230999,0.0020006,83506.0,83505.0,0.335606]
[1744459233416,0.00181941,83506.0,83505.0,0.335606]
[1744459235541,0.002,83539.0,83538.0,0.239412]
[1744459236081,0.472,83539.0,83536.0,0.239415]
[1744459236285,0.21745,83539.0,83530.0,0.239434]
[1744459236485,0.011971,83531.0,83524.0,0.0451]
[1744459236695,0.4,83525.0,83524.0,0.057072]
[1744459237086,0.4,83525.0,83524.0,0.0451]
[1744459241324,0.4,83525.0,83524.0,0.0946]
[1744459242319,0.4,83525.0,83524.0,0.0451]
[1744459242519,0.4,83525.0,83524.0,0.0461]
[1744459242804,0.4,83525.0,83524.0,0.0451]
[1744459243164,0.4,83525.0,83524.0,0.0461]
[1744459243412,0.4,83525.0,83524.0,0.0451]
[1744459243706,0.4,83525.0,83524.0,0.0461]
[1744459251970,0.41,83525.0,83524.0,0.001]
[1744459252927,0.239474,83517.0,83502.0,0.239514]
[1744459253137,0.13364,83524.0,83512.0,0.0001401]
[1744459253352,0.011974,83514.0,83512.0,0.0001401]
[1744459253808,0.4,83513.0,83512.0,0.0001401]
[1744459255107,0.401,83513.0,83512.0,0.0001401]
[1744459255522,0.011974,83511.0,83506.0,0.2435911]
[1744459255700,0.40113994,83513.0,83507.0,0.239498]
[1744459256281,0.41511394,83513.0,83509.0,0.011974]
[1744459256543,0.02236371,83512.0,83509.0,0.011974]
[1744459257064,0.01,83512.0,83509.0,0.011974]
[1744459257268,0.4,83511.0,83509.0,0.011974]
[1744459257480,0.42,83511.0,83509.0,0.011974]
[1744459258595,0.03358227,83510.0,83509.0,0.011974]
[1744459261402,0.03458227,83510.0,83509.0,0.011974]
[1744459261622,0.03558227,83510.0,83509.0,0.011974]
[1744459261841,0.02962827,83510.0,83509.0,0.011974]
[1744459262057,0.42962827,83510.0,83509.0,0.011974]
[1744459262994,0.011975,83504.0,83500.0,0.25048324]
[1744459263231,0.239519,83501.0,83498.0,0.0451]
[1744459263444,0.011975,83502.0,83498.0,0.057076]
[1744459263675,0.239512,83503.0,83499.0,0.011976]
[1744459263798,0.02238153,83501.0,83500.0,0.011976]
[1744459264221,0.02238153,83501.0,83500.0,0.012976]
[1744459264670,0.02238153,83501.0,83500.0,0.011976]
[1744459265097,0.02238153,83501.0,83500.0,0.012976]
[1744459265528,0.011975,83504.0,83500.0,0.015976]
[1744459265727,0.239512,83503.0,83500.0,0.004]
[1744459265944,0.02237212,83502.0,83500.0,0.001]
[1744459266154,0.239518,83501.0,83500.0,0.001]
[1744459266424,0.26189012,83501.0,83497.0,0.011976]
[1744459266660,0.27386512,83501.0,83497.0,0.011976]
[1744459266882,0.02237212,83500.0,83495.0,0.011976]
[1744459267566,0.251493,83501.0,83495.0,0.011976]
[1744459267787,0.251493,83501.0,83496.0,0.239532]
[1744459267972,0.251493,83501.0,83500.0,0.001]
[1744459268187,0.251493,83501.0,83498.0,0.011976]
[1744459268392,0.27385863,83501.0,83498.0,0.011976]
[1744459268801,0.02236563,83500.0,83498.0,0.011976]
[1744459269333,0.251493,83501.0,83498.0,0.011976]
[1744459269717,0.251493,83501.0,83498.0,0.012976]
[1744459270163,0.02236385,83500.0,83498.0,0.012976]
[1744459270684,0.251493,83501.0,83498.0,0.012976]
[1744459270993,0.331493,83501.0,83498.0,0.011976]
[1744459271427,0.331493,83501.0,83498.0,0.012976]
[1744459271639,0.331493,83501.0,83498.0,0.011976]
[1744459271848,0.02236293,83500.0,83498.0,0.012976]
[1744459272729,0.251493,83501.0,83498.0,0.011976]
[1744459272943,0.331493,83501.0,83498.0,0.011976]
[1744459273129,0.091975,83501.0,83498.0,0.001]
[1744459273751,0.091975,83501.0,83498.0,0.012976]
[1744459274214,0.02236599,83500.0,83498.0,0.011976]
[1744459274602,0.02236599,83499.0,83498.0,0.012976]
[1744459274750,0.42236599,83499.0,83498.0,0.012976]
[1744459275456,0.42236599,83499.0,83498.0,0.011976]
[1744459275663,0.42236599,83499.0,83498.0,0.012976]
[1744459275851,0.42236599,83499.0,83498.0,0.011976]
[1744459276188,0.42236599,83499.0,83498.0,0.012976]
[1744459278991,0.43355611,83499.0,83498.0,0.012976]
[1744459289648,0.44196574,83499.0,83498.0,0.012976]
[1744459290393,0.43355611,83499.0,83498.0,0.012976]
[1744459292807,0.4419706,83499.0,83498.0,0.012976]
[1744459298054,0.6814936,83499.0,83498.0,0.001]
[1744459298260,0.8314936,83499.0,83498.0,0.001]
[1744459299571,0.239546,83491.0,83486.0,0.011978]
[1744459299787,0.319546,83491.0,83485.0,0.011978]
[1744459299972,0.32796049,83491.0,83486.0,0.011978]
[1744459300143,0.3615166,83491.0,83486.0,0.011978]
[1744459300350,0.3615166,83491.0,83485.0,0.011978]
[1744459300785,0.35032648,83491.0,83483.0,0.011978]
[1744459300953,0.36153852,83491.0,83482.0,0.011978]
[1744459301152,0.36153852,83491.0,83482.0,0.25155]
[1744459301350,0.36153852,83491.0,83490.0,0.0018436]
[1744459312580,0.52868006,83491.0,83490.0,0.0018436]
[1744459313865,0.53068006,83491.0,83490.0,0.0018436]
[1744459314506,0.53068006,83491.0,83490.0,0.0008436]
[1744459315144,0.53168006,83491.0,83490.0,0.0008436]
[1744459315596,0.53068006,83491.0,83490.0,0.0008436]
[1744459315819,0.53268006,83491.0,83490.0,0.0008436]
[1744459323033,0.48638006,83491.0,83490.0,0.0008436]
[1744459329291,0.88638006,83491.0,83490.0,0.0008436]
[1744459329738,0.88438006,83491.0,83490.0,0.0008436]
[1744459330640,0.88238006,83491.0,83490.0,0.0008436]
[1744459330841,0.88438006,83491.0,83490.0,0.0008436]
[1744459331509,0.88738006,83491.0,83490.0,0.0008436]
[1744459332562,1.32298006,83491.0,83490.0,0.0008436]
[1744459333336,1.31998006,83491.0,83490.0,0.0008436]
[1744459334158,1.31798006,83491.0,83490.0,0.0008436]
[1744459334572,1.33752091,83491.0,83490.0,0.0008436]
[1744459334979,1.33252091,83491.0,83490.0,0.0008436]
[1744459335193,1.33752091,83491.0,83490.0,0.0008436]
[1744459335946,1.46224939,83491.0,83490.0,0.0008436]
[1744459336151,1.76032091,83491.0,83490.0,0.0008436]
[1744459346661,1.66472091,83491.0,83490.0,0.0008436]
[1744459348850,1.64235492,83491.0,83490.0,0.0008436]
[1744459351288,1.63394043,83491.0,83490.0,0.0008436]
[1744459354303,1.61939958,83491.0,83490.0,0.0008436]
[1744459354526,1.75543958,83491.0,83490.0,0.0008436]
[1744459355619,1.74422754,83491.0,83490.0,0.0008436]
[1744459359597,1.32542754,83491.0,83490.0,0.0008436]
[1744459366688,1.068546,83491.0,83490.0,0.0008436]
[1744459366914,1.204626,83491.0,83490.0,0.0008436]
[1744459368207,1.199626,83491.0,83490.0,0.0008436]
[1744459368395,1.062546,83491.0,83490.0,0.0008436]
[1744459368548,1.198626,83491.0,83490.0,0.0008436]
[1744459368743,1.201626,83491.0,83490.0,0.0008436]
[1744459369440,1.065546,83491.0,83490.0,0.0008436]
[1744459369610,1.201626,83491.0,83490.0,0.0008436]
[1744459371057,1.21284198,83491.0,83490.0,0.0008436]
[1744459371652,1.07676198,83491.0,83490.0,0.0008436]
[1744459371931,1.21284198,83491.0,83490.0,0.0008436]
[1744459375681,1.22125209,83491.0,83490.0,0.0008436]
[1744459376714,1.21284198,83491.0,83490.0,0.0008436]
[1744459386574,1.201626,83491.0,83490.0,0.0008436]
[1744459388083,1.32246754,83491.0,83490.0,0.0008436]
[1744459388539,1.33367593,83491.0,83490.0,0.0008436]
[1744459388805,1.44171678,83491.0,83490.0,6e-07]
[1744459389040,1.86051678,83491.0,83490.0,6e-07]
[1744459389276,1.89413255,83491.0,83490.0,6e-07]
[1744459389512,1.89953229,83491.0,83490.0,6e-07]
[1744459390271,0.579589,83476.0,83475.0,0.0008436]
[1744459390505,1.06501054,83476.0,83475.0,0.0008436]
[1744459390879,1.46501054,83476.0,83475.0,0.0008436]
[1744459391520,1.47621893,83476.0,83475.0,0.00131099]
[1744459391718,1.43171893,83476.0,83475.0,0.00131099]
[1744459391924,1.44063796,83476.0,83475.0,0.00131099]
[1744459393017,1.45202583,83476.0,83475.0,0.00131099]
[1744459393235,1.59512252,83476.0,83475.0,0.00131099]
[1744459393502,1.48893489,83476.0,83475.0,0.00131099]
[1744459406569,1.33831404,83476.0,83475.0,0.00131099]
[1744459406787,1.47763404,83476.0,83475.0,0.00131099]
[1744459406995,1.33831404,83476.0,83475.0,0.00131099]
[1744459407417,1.47463404,83476.0,83475.0,0.00131099]
[1744459407617,1.47063404,83476.0,83475.0,0.00131099]
[1744459407857,1.2154725,83476.0,83475.0,0.00131099]
[1744459408067,1.32942429,83476.0,83475.0,0.05091099]
[1744459408247,1.32742429,83476.0,83475.0,0.05091099]
[1744459408491,1.33042429,83476.0,83475.0,0.05091099]
[1744459408694,1.33342429,83476.0,83475.0,0.05091099]
[1744459409121,1.32742429,83476.0,83475.0,0.05091099]
[1744459409968,1.18810429,83476.0,83475.0,0.05091099]
[1744459410414,1.21145841,83476.0,83475.0,0.05091099]
[1744459410608,1.21245841,83476.0,83475.0,0.05091099]
[1744459411991,1.20353938,83476.0,83475.0,0.05091099]
[1744459415617,1.20356134,83476.0,83475.0,0.05091099]
[1744459419604,0.96397234,83476.0,83475.0,0.05091099]
[1744459420689,0.62397234,83476.0,83475.0,0.05091099]
[1744459422239,0.61558447,83476.0,83475.0,0.05091099]
[1744459424080,0.59320839,83476.0,83475.0,0.05091099]
[1744459426962,0.59220839,83476.0,83475.0,0.05091099]
[1744459427175,0.61558682,83476.0,83475.0,0.05091099]
[1744459428021,0.61458682,83476.0,83475.0,0.05091099]
[1744459430120,0.61458682,83476.0,83475.0,0.09661099]
[1744459430121,0.43458682,83476.0,83475.0,0.09661099]
[1744459430592,0.401,83476.0,83475.0,0.09661099]
[1744459430821,0.4,83476.0,83475.0,0.09661099]
[1744459431668,0.4,83476.0,83475.0,0.09900671]
[1744459432675,0.4,83476.0,83475.0,0.21984825]
[1744459432898,0.4,83476.0,83475.0,0.21745253]
[1744459434482,0.4,83476.0,83475.0,0.22045253]
[1744459435023,0.4,83476.0,83475.0,0.22545253]
[1744459435945,0.4,83476.0,83475.0,0.63365253]
[1744459444231,0.4,83476.0,83475.0,0.53835253]
[1744459444876,0.639589,83476.0,83475.0,0.41751099]
[1744459445077,0.59,83476.0,83475.0,0.41751099]
[1744459445514,0.62354446,83476.0,83475.0,0.41751099]
[1744459445745,0.62354446,83476.0,83475.0,0.41151099]
[1744459445951,0.62354446,83476.0,83475.0,0.40951099]
[1744459446164,0.62354446,83476.0,83475.0,0.41151099]
[1744459447609,0.62354446,83476.0,83475.0,0.00331099]
[1744459448665,0.86313346,83476.0,83475.0,0.00331099]
[1744459454282,0.62354446,83476.0,83475.0,0.00331099]
[1744459468436,0.63192829,83476.0,83475.0,0.00331099]
[1744459472472,0.60956532,83476.0,83475.0,0.00331099]
[1744459472675,0.59838383,83476.0,83475.0,0.00331099]
[1744459473697,0.6207701,83476.0,83475.0,0.00331099]
[1744459479970,0.59838383,83476.0,83475.0,0.00331099]
[1744459496626,0.59,83476.0,83475.0,0.00331099]
[1744459498626,0.59839676,83476.0,83475.0,0.00331099]
[1744459502053,0.59,83476.0,83475.0,0.00331099]
[1744459546986,1.17358003,83476.0,83475.0,0.00331099]
[1744459547208,1.19101803,83476.0,83475.0,9.9e-07]
[1744459547431,0.579612,83468.0,83467.0,0.0008438]
[1744459547656,1.09239354,83468.0,83467.0,0.0008438]
[1744459547878,1.12320388,83468.0,83467.0,0.0008438]
[1744459548141,1.52320388,83468.0,83467.0,0.0008438]
[1744459548305,1.5344109,83468.0,83467.0,0.0008438]
[1744459550078,1.5394109,83468.0,83467.0,0.0008438]
[1744459550921,1.5374109,83468.0,83467.0,0.0008438]
[1744459551864,1.5414109,83468.0,83467.0,0.0008438]
[1744459552748,1.55595175,83468.0,83467.0,0.0008438]
[1744459553537,1.97475175,83468.0,83467.0,0.0008438]
[1744459553972,1.97175175,83468.0,83467.0,0.0008438]
[1744459554784,1.97775175,83468.0,83467.0,0.0008438]
[1744459554983,1.97175175,83468.0,83467.0,0.0008438]
[1744459555582,1.96775175,83468.0,83467.0,0.0008438]
[1744459555925,1.97275175,83468.0,83467.0,0.0008438]
[1744459556371,1.96775175,83468.0,83467.0,0.0008438]
[1744459556814,1.97375175,83468.0,83467.0,0.0028438]
[1744459556988,1.98275175,83468.0,83467.0,0.0028438]
[1744459560810,1.99916622,83468.0,83467.0,0.0028438]
[1744459562732,1.98275175,83468.0,83467.0,0.0028438]
[1744459564238,1.97154473,83468.0,83467.0,0.0028438]
[1744459564629,1.94913099,83468.0,83467.0,0.0028438]
[1744459569179,1.97144893,83468.0,83467.0,0.0028438]
[1744459569367,1.98260775,83468.0,83467.0,0.0028438]
[1744459569560,2.03377458,83468.0,83467.0,0.0028438]
[1744459570078,1.98260775,83468.0,83467.0,0.0028438]
[1744459571412,1.98288775,83468.0,83467.0,0.0028438]
[1744459573088,1.98288775,83468.0,83467.0,8e-07]
[1744459574013,0.59416185,83465.0,83464.0,6e-07]
[1744459574225,1.06153187,83465.0,83464.0,0.00014076]
[1744459574417,1.08384981,83465.0,83464.0,0.00014076]
[1744459574656,1.36935915,83465.0,83464.0,7.6e-07]
[1744459574861,1.36935915,83465.0,83456.0,0.0008438]
[1744459574862,0.63998485,83457.0,83456.0,5.6e-07]
[1744459575062,1.39034093,83457.0,83456.0,5.6e-07]
[1744459575481,1.79034093,83457.0,83456.0,5.6e-07]
[1744459576074,1.80549975,83457.0,83456.0,5.6e-07]
[1744459577181,1.80149975,83457.0,83456.0,5.6e-07]
[1744459577641,1.80649975,83457.0,83456.0,5.6e-07]
[1744459577856,1.82167813,83457.0,83456.0,0.00100056]
[1744459578112,1.94240661,83457.0,83456.0,0.00100056]
[1744459578765,1.82167813,83457.0,83456.0,0.00100056]
[1744459580878,1.95703813,83457.0,83456.0,0.00100056]
[1744459582052,1.95751813,83457.0,83456.0,0.00100056]
[1744459583425,1.93520019,83457.0,83456.0,0.00100056]
[1744459583859,1.92404137,83457.0,83456.0,0.00100056]
[1744459586591,1.87824137,83457.0,83456.0,0.00100056]
[1744459589805,1.86984477,83457.0,83456.0,0.00100056]
[1744459592587,1.73400477,83457.0,83456.0,0.00100056]
[1744459592799,1.86984477,83457.0,83456.0,0.00100056]
[1744459604277,1.73400477,83457.0,83456.0,0.00100056]
[1744459604485,1.86984477,83457.0,83456.0,0.00100056]
[1744459610532,1.73446238,83457.0,83456.0,0.04960056]
[1744459610760,1.59862238,83457.0,83456.0,0.09860056]
[1744459611660,1.59362238,83457.0,83456.0,0.09860056]
[1744459611888,1.59062238,83457.0,83456.0,0.09760056]
[1744459613009,1.58762238,83457.0,83456.0,0.09760056]
[1744459613188,1.59162238,83457.0,83456.0,0.09760056]
[1744459613395,1.58762238,83457.0,83456.0,0.09760056]
[1744459613802,1.59062238,83457.0,83456.0,0.09760056]
[1744459614337,1.59262238,83457.0,83456.0,0.09760056]
[1744459614936,0.83382238,83457.0,83456.0,0.09760056]
[1744459620359,0.83382238,83457.0,83456.0,0.04900056]
[1744459621004,1.29466392,83457.0,83456.0,5.6e-07]
[1744459621161,1.30920477,83457.0,83456.0,5.6e-07]
[1744459625895,1.30620477,83457.0,83456.0,5.6e-07]
[1744459626368,1.31220477,83457.0,83456.0,0.00100056]
[1744459626583,1.72900477,83457.0,83456.0,0.00100056]
[1744459626810,1.73300477,83457.0,83456.0,0.00100056]
[1744459637719,0.59419885,83452.0,83451.0,5.6e-07]
[1744459637942,0.89504039,83452.0,83451.0,5.6e-07]
[1744459638175,0.90342592,83452.0,83451.0,5.6e-07]
[1744459638393,0.90342592,83452.0,83445.0,4.6e-07]
[1744459638394,1.3257826,83452.0,83445.0,4.6e-07]
[1744459638613,0.59421585,83446.0,83445.0,4.6e-07]
[1744459638844,0.87505739,83446.0,83445.0,4.6e-07]
[1744459639277,1.30579974,83446.0,83445.0,4.6e-07]
[1744459640155,1.31079974,83446.0,83445.0,0.00100046]
[1744459640380,1.32197422,83446.0,83445.0,0.00100046]
[1744459640602,1.32697422,83446.0,83445.0,0.00100046]
[1744459641273,1.74577422,83446.0,83445.0,0.00100046]
[1744459641970,1.73459974,83446.0,83445.0,0.00100046]
[1744459642425,1.87051974,83446.0,83445.0,0.00100046]
[1744459644283,1.73459974,83446.0,83445.0,0.00100046]
[1744459644489,1.87187974,83446.0,83445.0,0.00100046]
[1744459650568,1.85733889,83446.0,83445.0,0.00100046]
[1744459651727,1.83498207,83446.0,83445.0,0.00100046]
[1744459653041,1.41618207,83446.0,83445.0,0.00100046]
[1744459658739,1.40779654,83446.0,83445.0,0.00100046]
[1744459659086,1.16812154,83446.0,83445.0,0.00100046]
[1744459660097,0.91,83446.0,83445.0,0.24067846]
[1744459660566,0.91,83446.0,83445.0,0.29017846]
[1744459661337,0.57839122,83446.0,83445.0,0.29017846]
[1744459663455,0.57339122,83446.0,83445.0,0.28917846]
[1744459663872,0.568,83446.0,83445.0,0.28917846]
[1744459664085,0.563,83446.0,83445.0,0.28917846]
[1744459664714,0.566,83446.0,83445.0,0.28917846]
[1744459694882,0.406,83446.0,83445.0,0.28917846]
[1744459695084,0.406,83446.0,83445.0,0.33477846]
[1744459695911,0.403,83446.0,83445.0,0.33477846]
[1744459696136,0.4,83446.0,83445.0,0.33477846]
[1744459696578,0.401,83446.0,83445.0,0.45862]
[1744459697240,0.4,83446.0,83445.0,0.45562]
[1744459697444,0.4,83446.0,83445.0,0.46062]
[1744459697651,0.401,83446.0,83445.0,0.46062]
[1744459697802,0.4,83446.0,83445.0,0.46732614]
[1744459698677,0.4,83446.0,83445.0,0.46832614]
[1744459699210,0.401,83446.0,83445.0,0.47332614]
[1744459699520,0.401,83446.0,83445.0,0.47432614]
[1744459700227,0.13684,83472.0,83445.0,0.47432614]
[1744459700454,0.18010621,83472.0,83471.0,0.239604]
[1744459701346,0.58010621,83472.0,83471.0,0.239604]
[1744459702429,0.58010621,83472.0,83470.0,0.01198]
[1744459702646,0.58210621,83472.0,83470.0,0.01198]
[1744459702873,0.58210621,83472.0,83471.0,0.239604]
[1744459703323,0.58010621,83472.0,83471.0,0.239604]
[1744459703583,0.58410621,83472.0,83471.0,0.239604]
[1744459703778,0.58210621,83472.0,83471.0,0.239604]
[1744459704238,0.58310621,83472.0,83471.0,0.239604]
[1744459704914,0.58110621,83472.0,83471.0,0.239604]
[1744459705033,0.58310621,83472.0,83471.0,0.239604]
[1744459707187,0.40310621,83472.0,83471.0,0.239604]
[1744459707406,0.40310621,83472.0,83471.0,0.289504]
[1744459707633,0.40310621,83472.0,83471.0,0.45604554]
[1744459707838,0.40010621,83472.0,83471.0,0.45604554]
[1744459708910,0.40010621,83472.0,83471.0,0.45804554]
[1744459709315,0.40010621,83472.0,83471.0,0.45604554]
[1744459709730,0.40010621,83472.0,83471.0,0.45704554]
[1744459709949,0.40010621,83472.0,83471.0,0.45804554]
[1744459710582,0.40010621,83472.0,83471.0,0.45704554]
[1744459710821,0.40010621,83472.0,83471.0,0.46004554]
[1744459711763,0.40010621,83472.0,83471.0,0.46204554]
[1744459713074,0.40010621,83472.0,83471.0,0.341204]
[1744459713300,0.40010621,83472.0,83471.0,0.291304]
[1744459716249,0.40010621,83472.0,83471.0,0.245604]
[1744459719265,0.41010621,83472.0,83471.0,0.245604]
[1744459721633,0.40010621,83472.0,83471.0,0.245604]
[1744459745412,0.41010621,83472.0,83471.0,0.245604]
[1744459748026,0.40010621,83472.0,83471.0,0.41184554]
[1744459751455,0.40010621,83472.0,83471.0,0.45904554]
[1744459752845,0.40010621,83472.0,83471.0,0.86724554]
[1744459763356,0.40010621,83472.0,83471.0,0.86324554]
[1744459763553,0.40110621,83472.0,83471.0,0.86724554]
[1744459763721,0.40110621,83472.0,83471.0,0.87024554]
[1744459767700,0.0008442,83491.0,83490.0,0.239549]
[1744459767921,0.0008442,83491.0,83490.0,0.76859054]
[1744459768890,2e-07,83491.0,83490.0,0.76859054]
[1744459769335,0.0008442,83499.0,83496.0,0.239529]
[1744459769546,0.0008442,83499.0,83497.0,0.12323625]
[1744459769758,0.00131133,83499.0,83498.0,0.239526]
[1744459769977,0.00131133,83499.0,83498.0,0.36036754]
[1744459771657,0.00131133,83499.0,83498.0,0.36136754]
[1744459772694,0.00131133,83499.0,83498.0,0.36336754]
[1744459773106,0.00131133,83499.0,83498.0,0.40996754]
[1744459773311,0.00131133,83499.0,83498.0,0.41396754]
[1744459773550,0.00131133,83499.0,83498.0,0.41696754]
[1744459774801,0.00131133,83499.0,83498.0,0.46576754]
[1744459775223,0.00131133,83499.0,83498.0,0.87396754]
[1744459775427,0.00131133,83499.0,83498.0,0.87196754]
[1744459775635,0.00131133,83499.0,83498.0,0.86696754]
[1744459775855,0.00131133,83499.0,83498.0,0.87396754]
[1744459776571,0.00131133,83499.0,83498.0,0.86696754]
[1744459776775,0.00131133,83499.0,83498.0,0.86396754]
[1744459776979,0.00131133,83499.0,83498.0,0.87496754]
[1744459777612,0.00131133,83499.0,83498.0,0.87096754]
[1744459777816,0.00131133,83499.0,83498.0,0.87496754]
[1744459779233,3.3e-07,83499.0,83498.0,1.21496754]
[1744459783479,3.3e-07,83499.0,83498.0,1.23050839]
[1744459791791,3.3e-07,83499.0,83498.0,1.21950839]
[1744459792109,3.3e-07,83499.0,83498.0,1.22550839]
[1744459792427,3.3e-07,83499.0,83498.0,1.22950839]
[1744459797927,3.3e-07,83506.0,83505.0,0.579506]
[1744459798140,4.702e-05,83506.0,83505.0,0.83534754]
[1744459798976,0.000422,83524.0,83515.0,0.011973]
[1744459799208,0.00046867,83524.0,83523.0,0.239455]
[1744459799424,0.00046867,83524.0,83523.0,0.36029654]
[1744459802389,0.00046867,83524.0,83523.0,0.76849654]
[1744459806055,0.00046867,83524.0,83523.0,0.76949654]
[1744459808880,0.00046867,83524.0,83523.0,0.76849654]
[1744459809338,0.00046867,83524.0,83523.0,0.77049654]
[1744459810301,0.00046867,83524.0,83523.0,0.77249654]
[1744459810724,0.00046867,83524.0,83523.0,0.77049654]
[1744459810941,0.00046867,83524.0,83523.0,0.77249654]
[1744459811157,0.00046867,83524.0,83523.0,0.77549654]
[1744459816229,0.00046867,83524.0,83523.0,0.4152]
[1744459816468,0.05576867,83524.0,83523.0,0.4152]
[1744459816707,0.10226867,83524.0,83523.0,0.4152]
[1744459816879,0.25226867,83524.0,83523.0,0.4152]
[1744459817118,0.25226867,83524.0,83523.0,0.007]
[1744459817290,0.25226867,83524.0,83523.0,0.004]
[1744459817697,0.25226867,83524.0,83523.0,0.006]
[1744459817908,0.25226867,83524.0,83523.0,0.002]
[1744459818114,0.0498,83518.0,83516.0,0.011973]
[1744459818715,0.0498,83518.0,83516.0,0.251447]
[1744459818862,0.15,83517.0,83516.0,0.251447]
[1744459820554,0.15,83517.0,83516.0,0.253447]
[1744459820921,0.15,83517.0,83516.0,0.251447]
[1744459821241,0.15,83517.0,83516.0,0.253447]
[1744459828249,0.15,83517.0,83516.0,0.37428854]
[1744459834824,0.15,83517.0,83516.0,0.78248854]
[1744459841575,0.15,83517.0,83516.0,0.82858854]
[1744459842889,0.15,83517.0,83516.0,0.83258854]
[1744459843567,0.15,83517.0,83516.0,0.84006807]
[1744459843780,0.15,83517.0,83516.0,0.83806807]
[1744459844707,0.00046867,83524.0,83523.0,0.239455]
[1744459844888,0.00046867,83524.0,83523.0,0.36777607]
[1744459846014,0.00046867,83524.0,83523.0,0.36977607]
[1744459846217,0.00046867,83524.0,83523.0,0.37177607]
[1744459847390,0.00046867,83524.0,83523.0,0.50685607]
[1744459849102,0.00046867,83524.0,83523.0,0.38601453]
[1744459849315,0.00046867,83524.0,83523.0,0.25093453]
[1744459849838,0.00046867,83524.0,83523.0,0.243455]
[1744459850028,0.00046867,83524.0,83523.0,0.241455]
[1744459850874,0.00046867,83524.0,83523.0,0.243455]
[1744459854812,0.00046867,83524.0,83523.0,0.36429654]
[1744459855186,0.00046867,83524.0,83523.0,0.37177618]
[1744459871579,0.00046867,83524.0,83523.0,0.50973618]
[1744459874597,0.00046867,83524.0,83523.0,0.25093464]
[1744459892254,0.00046867,83524.0,83523.0,0.37177618]
[1744459892428,0.00046867,83524.0,83523.0,0.41827618]
[1744459893572,0.00046867,83524.0,83523.0,0.4220159]
[1744459897704,0.00046867,83524.0,83523.0,0.42201561]
[1744459902641,0.00046867,83524.0,83523.0,0.42201561]
[1744459915582,0.00046867,83524.0,83523.0,0.80721561]
[1744459916843,0.00046867,83524.0,83523.0,1.21167589]
[1744459928829,0.00046867,83524.0,83523.0,1.21541518]
[1744459929598,0.00046867,83524.0,83523.0,1.35281518]
[1744459938773,7.7e-07,83525.0,83523.0,1.35281518]
[1744459938991,7.7e-07,83525.0,83524.0,0.16973529]
[1744459939513,7.7e-07,83525.0,83524.0,0.17721464]
[1744459940152,7.7e-07,83525.0,83524.0,0.18095393]
[1744459941412,7.7e-07,83525.0,83524.0,0.24229478]
[1744459941620,7.7e-07,83525.0,83524.0,0.23990103]
[1744459941760,7.7e-07,83525.0,83524.0,0.24790103]
[1744459943207,7.7e-07,83525.0,83524.0,0.65610103]
[1744459955796,7.7e-07,83525.0,83524.0,0.99610103]
[1744459957946,7.7e-07,83525.0,83524.0,1.02761458]
[1744459958353,7.7e-07,83525.0,83524.0,1.02387529]
[1744459958981,7.7e-07,83530.0,83529.0,0.01454085]
[1744459959221,6.7e-07,83533.0,83532.0,0.239429]
[1744459959354,3.3e-07,83533.0,83532.0,0.77834354]
[1744459959693,3.3e-07,83533.0,83532.0,0.77594989]
[1744459961401,3.3e-07,83533.0,83532.0,0.78394989]
[1744459961622,0.15,83550.0,83549.0,0.23938]
[1744459961836,0.15004667,83550.0,83549.0,0.76842154]
[1744459962265,0.15004667,83550.0,83549.0,0.78054213]
[1744459962954,4.7e-07,83551.0,83549.0,0.78054213]
[1744459963140,4.7e-07,83551.0,83550.0,0.5314348]
[1744459963391,4.7e-07,83551.0,83550.0,0.52904154]
[1744459963614,4.7e-07,83551.0,83550.0,0.53652089]
[1744459964896,4.7e-07,83551.0,83550.0,0.54352089]
[1744459965687,4.7e-07,83551.0,83550.0,0.68048089]
[1744459967350,4.7e-07,83551.0,83550.0,0.69502174]
[1744459967555,0.002,83569.0,83558.0,0.239354]
[1744459967556,4.7e-07,83559.0,83558.0,0.239354]
[1744459967863,4.713e-05,83559.0,83558.0,0.36019554]
[1744459968395,4.713e-05,83559.0,83558.0,0.36767489]
[1744459970178,4.713e-05,83559.0,83558.0,0.37567489]
[1744459971376,1.3e-07,83559.0,83558.0,0.37567489]
[1744459971791,1.3e-07,83559.0,83558.0,0.51259489]
[1744459972547,1.3e-07,83559.0,83558.0,0.92079489]
[1744459972764,1.3e-07,83559.0,83558.0,0.96629489]
[1744459976575,1.3e-07,83559.0,83558.0,0.96329489]
[1744459976722,1.3e-07,83559.0,83558.0,0.95829489]
[1744459976921,1.3e-07,83559.0,83558.0,0.96129489]
[1744459977122,1.3e-07,83559.0,83558.0,0.96629489]
[1744459977363,1.3e-07,83559.0,83558.0,1.30629489]
[1744459977567,1.3e-07,83562.0,83561.0,0.579346]
[1744459977774,1.3e-07,83562.0,83561.0,0.70018754]
[1744459978356,1.3e-07,83562.0,83561.0,0.70766689]
[1744459978563,1.3e-07,83562.0,83561.0,1.11586689]
[1744459979772,1.3e-07,83562.0,83561.0,1.11886689]
[1744459980000,1.3e-07,83562.0,83561.0,1.12386689]
[1744459982210,1.3e-07,83562.0,83561.0,1.11886689]
[1744459982472,1.3e-07,83562.0,83561.0,1.12386689]
[1744459983006,1.3e-07,83562.0,83561.0,1.12586689]
[1744459983564,1.3e-07,83562.0,83561.0,1.12886689]
[1744459983934,1.3e-07,83562.0,83561.0,0.92186689]
[1744459984136,1.3e-07,83562.0,83561.0,0.92486689]
[1744459985082,1.3e-07,83562.0,83561.0,0.92186689]
[1744459985594,1.3e-07,83562.0,83561.0,0.91186689]
[1744459985761,1.3e-07,83562.0,83561.0,0.91686689]
[1744459986231,0.04810013,83562.0,83561.0,0.91986689]
[1744459987088,0.04810013,83562.0,83561.0,0.91186689]
[1744459987319,0.04810013,83562.0,83561.0,0.91986689]
[1744459987843,0.19810013,83562.0,83561.0,0.91986689]
[1744459990944,0.04810013,83562.0,83561.0,0.91986689]
[1744459991367,0.19810013,83562.0,83561.0,0.91986689]
[1744459994321,0.04810013,83562.0,83561.0,0.91986689]